Cogmind - Beta 15 @@@ ROGUE MODE // 2025.08.12 @ 22:12:05 Player: erfael Result: Destroyed by S-10 Pest with Light Assault Rifle Performance ------------- Evolutions (2) 1000 Regions Visited (5) 1000 Robots Destroyed (32) 160 Value Destroyed (752) 752 Prototype IDs (23) 460 Alien Tech Used (0) 0 Bonus (0) 0 TOTAL SCORE: 3372 Bonus ------- None Cogmind --------- Core Integrity 0/550 Matter 253/300 Energy 100/100 System Corruption 0% Temperature Cool (0) Movement Core (400) Ox7 Location -8/Materials Parts ------- > --- POWER (1) -------- (None) > --- PROPULSION (4) --- (None) > --- UTILITY (4) ------ Large Storage Unit > --- WEAPON (2) ------- Makeshift Sword > --- INVENTORY (15) --- Ion Engine Ion Engine Seismic Detector Improved Targeting Computer Light Armor Plating Small Laser Peak State ------------ > --- POWER ------------ Light Nuclear Core > --- PROPULSION ------- Aluminum Leg Aluminum Leg Aluminum Leg Aluminum Leg > --- UTILITY ---------- Large Storage Unit Improved Terrain Scanner Seismic Detector Light Armor Plating > --- WEAPON ----------- Particle Gun Rocket Launcher > --- INVENTORY -------- Ion Engine Ion Engine Aluminum Leg Aluminum Leg Seismic Detector Improved Targeting Computer Light Armor Plating Small Laser Light Assault Rifle Grenade Launcher Makeshift Sword [Rating: 18] Favorites ----------- Power Light Nuclear Core Engine Ion Engine Power Core Light Nuclear Core Propulsion Aluminum Leg Leg Aluminum Leg Utility Seismic Detector Device Seismic Detector Storage Large Storage Unit Protection Light Armor Plating Weapon Light Assault Rifle Energy Gun Particle Gun Ballistic Gun Light Assault Rifle Launcher Rocket Launcher Slashing Weapon Makeshift Sword Build | -11 -10 -10 -10 -9 -8 ------- Run | Yrd Mat Min Exi Min Mat Slots Evolved 4 | . . . . . 4 Power . | . . . . . . Propulsion 2 | . . . . . 2 Utility 2 | . . . . . 2 Weapon . | . . . . . . Parts Attached 28 | 8 14 . . 2 4 Power 4 | 1 3 . . . . Engine 3 | 1 2 . . . . Core 1 | . 1 . . . . Reactor . | . . . . . . Propulsion 10 | 2 7 . . 1 . Treads . | . . . . . . Leg 10 | 2 7 . . 1 . Wheel . | . . . . . . Hover . | . . . . . . Flight . | . . . . . . Utility 7 | 2 3 . . . 2 Device 2 | 1 . . . . 1 Storage 4 | 1 3 . . . . Processor . | . . . . . . Hackware . | . . . . . . Protection 1 | . . . . . 1 Artifact . | . . . . . . Weapon 7 | 3 1 . . 1 2 Energy Gun 3 | 2 1 . . . . Energy Cannon . | . . . . . . Ballistic Gun 1 | 1 . . . . . Ballistic Cannon . | . . . . . . Launcher 2 | . . . . 1 1 Special Weapon . | . . . . . . Impact Weapon . | . . . . . . Slashing Weapon 1 | . . . . . 1 Piercing Weapon . | . . . . . . Special Melee Weapon . | . . . . . . Unidentified Prototypes . | . . . . . . Parts Lost 15 | . 1 . . . 14 Power 1 | . . . . . 1 Propulsion 6 | . . . . . 6 Utility 3 | . . . . . 3 Weapon 5 | . 1 . . . 4 Highest Loss Streak 14 | . 1 . . . 14 To Critical Strikes . | . . . . . . Average Backups 13 | 4 12 15 15 15 10 Power 2 | . 2 2 2 2 2 Propulsion 3 | 1 3 4 4 4 1 Utility 5 | 1 5 7 6 5 3 Weapon 2 | . 1 1 2 3 3 Tool/Special . | . . . . . . Unused Backups 11 | . 2 . 2 3 4 Power 1 | . . . . . 1 Propulsion 3 | . 2 . . 1 . Utility 6 | . . . 1 2 3 Weapon 1 | . . . 1 . . Tool/Special . | . . . . . . Average Slot Usage (%) 98 | . 99 100 100 100 77 Engine 2 | . 6 . . . . Core 11 | . 7 14 14 14 7 Leg 27 | . 27 28 28 28 27 Device 13 | . 14 14 14 14 13 Storage 13 | . 14 14 14 14 9 Energy Gun 13 | . 13 14 14 14 6 Ballistic Gun 11 | . 14 14 14 5 5 Launcher 2 | . . . . 8 2 Peak Build Rating 18 | 8 11 12 12 13 18 Average Rating 11 | 6 9 11 11 12 14 On Entrance 9 | . 8 11 12 12 13 Naked Turns . | . . . . . . Heaviest Build 34 | 11 30 30 30 33 34 Greatest Support 40 | 20 20 20 20 20 40 Greatest Overweight (x) 10 | . 1 1 1 1 10 Average Overweight (x) . | . . 1 1 1 1 Largest Inventory Capacity 25 | 8 25 15 15 15 15 Average Capacity 14 | 7 13 15 15 15 15 Most Carried 15 | 7 15 15 15 15 15 Average Carried 13 | 5 12 14 14 14 9 Final Capacity 15 | 8 15 15 15 15 15 Final Carried 15 | 7 15 15 15 15 6 Class Distribution -------------------- 81% | Scavenger-Mutant 18% | Mutant Dominant Class ---------------- Scavenger-Mutant | -10/Materials Scavenger-Mutant | -10/Mines Scavenger-Mutant | -10/Exiles Scavenger-Mutant | -9/Mines Scavenger-Mutant | -8/Materials Resources | -11 -10 -10 -10 -9 -8 ----------- Run | Yrd Mat Min Exi Min Mat Matter Collected 631 | 307 244 . . 30 50 Remotely . | . . . . . . Salvage Created 1173 | 258 622 . . . 293 Parts 60 | 17 33 . . . 10 Haulers Intercepted 2 | . 2 . . . . Recyclers Shooed 4 | . 3 . . . 1 Parts Field Recycled . | . . . . . . Retrieved Matter . | . . . . . . Parts Self-Destructed . | . . . . . . Prevented . | . . . . . . Kills | -11 -10 -10 -10 -9 -8 ------- Run | Yrd Mat Min Exi Min Mat Combat Hostiles Destroyed 18 | . 12 . . . 6 Guns 15 | . 12 . . . 3 AOE 3 | . . . . . 3 Classes Destroyed 7 | 3 3 . . . 1 Worker 3 | 2 . . . . 1 Tunneler 6 | 6 . . . . . Hauler 2 | . 2 . . . . Recycler 3 | 1 1 . . . 1 Swarmer 3 | . 3 . . . . Grunt 14 | . 9 . . . 5 Hunter 1 | . . . . . 1 Best Kill Streak 7 | 3 6 . . . 7 Combat Bots Only 5 | . 5 . . . 5 Max Kills in Single Turn 2 | 1 2 . . . 2 Gunslinging 1 | . 1 . . . . Exploded 1 | . . . . . 1 Melee . | . . . . . . Uniques/NPCs Destroyed . | . . . . . . Combat | -11 -10 -10 -10 -9 -8 -------- Run | Yrd Mat Min Exi Min Mat Hostile Shots Fired 179 | . 75 . . . 104 Missed 35 | . 17 . . . 18 Hits 144 | . 58 . . . 86 Projectile 144 | . 58 . . . 86 Critical Strikes 6 | . 3 . . . 3 Damage Taken 2178 | . 693 . . . 1485 Core 682 | . 132 . . . 550 Absorbed by Shields . | . . . . . . Regen/Repaired (Parts) 156 | . 156 . . . . Core Remaining (%) 73 | 100 . . . 47 . Volleys Fired 107 | 27 59 . . . 21 Largest 2 | 2 2 . . . 2 Hottest 95 | 60 85 . . . 95 Shots Fired 186 | 52 96 . . . 38 Gun 181 | 52 96 . . . 33 Cannon . | . . . . . . Launcher 5 | . . . . . 5 Special . | . . . . . . Kinetic 101 | 27 59 . . . 15 Thermal 70 | 25 27 . . . 18 Explosive 5 | . . . . . 5 Electromagnetic 10 | . 10 . . . . Robot Hit Streak 17 | 8 17 . . . 8 Robot Miss Streak 4 | 3 4 . . . 2 Penetration Max . | . . . . . . Secondary Targets 4 | . 2 . . . 2 Max Gunslinging Chain 1 | . 1 . . . 1 Shots Hit Robots 123 | 34 65 . . . 24 Core Hits 64 | 14 31 . . . 19 Critical Kills . | . . . . . . Critical Parts Destroyed . | . . . . . . Critical Strikes 5 | . 3 . . . 2 Burn 5 | . 3 . . . 2 Melee Attacks . | . . . . . . Impact . | . . . . . . Slashing . | . . . . . . Piercing . | . . . . . . Sneak Attacks . | . . . . . . Combat Hostiles . | . . . . . . Follow-up Attacks . | . . . . . . Damage Inflicted 1800 | 324 722 . . . 754 Guns 1294 | 324 686 . . . 284 Cannons . | . . . . . . Explosions 506 | . 36 . . . 470 Melee . | . . . . . . Ramming . | . . . . . . Kinetic 510 | 135 304 . . . 71 Thermal 741 | 189 339 . . . 213 Explosive 470 | . . . . . 470 Electromagnetic 79 | . 79 . . . . Impact . | . . . . . . Slashing . | . . . . . . Piercing . | . . . . . . Highest Corruption . | . . . . . . Average Corruption . | . . . . . . Corruption Purged . | . . . . . . Corruption Blocked . | . . . . . . Overload Shots . | . . . . . . Overflow Damage 9 | . . . . . 9 Projectiles . | . . . . . . Explosions 9 | . . . . . 9 Melee . | . . . . . . Knockbacks . | . . . . . . Impact . | . . . . . . Kinetic . | . . . . . . Secondary . | . . . . . . Self-Inflicted Damage 170 | . 29 . . . 141 Shots 5 | . 1 . . . 4 Rammed . | . . . . . . Targets Rammed . | . . . . . . Kicked . | . . . . . . Crushed . | . . . . . . Highest Temperature 488 | 60 339 . . . 488 Average Temperature 124 | 24 113 . . . 214 Received Heat Transfer 963 | . 360 . . . 603 Effects 6 | . 2 . . . 4 Shutdowns 2 | . . . . . 2 Energy Bleed 1 | . . . . . 1 Interference 3 | . 2 . . . 1 Siege Activations . | . . . . . . Martial Activations . | . . . . . . Shielding Activations . | . . . . . . Robots Disrupted . | . . . . . . Combat Hostiles . | . . . . . . Robots Corrupted . | . . . . . . Combat Hostiles . | . . . . . . Parts Fried . | . . . . . . Impact Corruptions . | . . . . . . Robots Melted . | . . . . . . Combat Hostiles . | . . . . . . Parts Melted 4 | . 3 . . . 1 Heat Transferred 2031 | 425 977 . . . 629 Parts Sabotaged . | . . . . . . Parts Stolen . | . . . . . . Parts Stripped . | . . . . . . Power Chain Reactions 1 | . 1 . . . . Alert | -11 -10 -10 -10 -9 -8 ------- Run | Yrd Mat Min Exi Min Mat Maximum Alert Level . | . . . . . . Low Security (%) 100 | 100 100 100 . 100 100 Level 1 . | . . . . . . Level 2 . | . . . . . . Level 3 . | . . . . . . Level 4 . | . . . . . . Level 5 . | . . . . . . High Security . | . . . . . . Max Security . | . . . . . . Peak Influence 154 | 10 154 30 . . 40 Initial 30 | . . 30 . . . Average 23 | 1 42 20 . . 11 Influence Increases 576 | 45 352 . . . 179 Destroy 0b10 Robot/C 360 | . 240 . . . 120 Destroy 0b10 Robot/NC 70 | 45 15 . . . 10 Destroy Leader 84 | . 64 . . . 20 Successful Hack 18 | . 18 . . . . Disable Machine 30 | . 15 . . . 15 Destroy Structure 14 | . . . . . 14 Influence Decreases 576 | 45 275 67 10 . 179 Entered New Map 57 | . . 47 10 . . Time Decay 380 | 45 265 20 . . 50 Lost Part 139 | . 10 . . . 129 Squads Dispatched 3 | . 2 . . . 1 Investigation . | . . . . . . Extermination . | . . . . . . Reinforcement 3 | . 2 . . . 1 Assault . | . . . . . . Garrison . | . . . . . . Intercept . | . . . . . . Searches Triggered . | . . . . . . Construction Impeded . | . . . . . . Haulers Reinforced . | . . . . . . Active Scanning Responses . | . . . . . . Cargo Convoy Interrupts . | . . . . . . Stealth | -11 -10 -10 -10 -9 -8 --------- Run | Yrd Mat Min Exi Min Mat Distress Signals 9 | . 5 . . . 4 Communications Jammed . | . . . . . . Distress Signals . | . . . . . . Times Spotted 51 | . 34 . . 2 15 Peak Tracking Total 8 | . 7 . . 3 8 Tactical Retreats . | . . . . . . Traps | -11 -10 -10 -10 -9 -8 ------- Run | Yrd Mat Min Exi Min Mat Traps Triggered . | . . . . . . Indirectly . | . . . . . . Trap Hack Attempts . | . . . . . . Triggered . | . . . . . . Disarmed . | . . . . . . Reprogrammed . | . . . . . . Reused . | . . . . . . Traps Extracted . | . . . . . . Installed . | . . . . . . Triggered . | . . . . . . Machines | -11 -10 -10 -10 -9 -8 ---------- Run | Yrd Mat Min Exi Min Mat Machines Disabled 2 | . 1 . . . 1 Max in Single Turn 1 | . 1 . . . 1 Machines Repaired . | . . . . . . Machines Dismantled . | . . . . . . Machines Sabotaged . | . . . . . . Overloaded Fab Kills . | . . . . . . Hacking | -11 -10 -10 -10 -9 -8 --------- Run | Yrd Mat Min Exi Min Mat Machines Accessed 10 | . 7 . 2 1 . Terminals 7 | . 6 . . 1 . Fabricators . | . . . . . . Repair Stations 1 | . 1 . . . . Recycling Units . | . . . . . . Scanalyzers . | . . . . . . Garrison Access . | . . . . . . Total Hacks 48 | . 21 . 24 3 . Successful 37 | . 12 . 24 1 . Failed 11 | . 9 . . 2 . Catastrophic 2 | . 1 . . 1 . Database Lockouts . | . . . . . . Manual 15 | . 10 . 2 3 . Terminals 13 | . 10 . . 3 . Fabricators . | . . . . . . Repair Stations 11 | . 11 . . . . Recycling Units . | . . . . . . Scanalyzers . | . . . . . . Garrison Access . | . . . . . . Terminal Hacks 26 | . 2 . 24 . . Record 23 | . . . 23 . . Locate Traps 2 | . 2 . . . . Proto ID Catalog 1 | . . . 1 . . Fabricator Hacks . | . . . . . . Repair Station Hacks 8 | . 8 . . . . Scan Component 4 | . 4 . . . . Repair 4 | . 4 . . . . Recycling Unit Hacks . | . . . . . . Scanalyzer . | . . . . . . Garrison Access Hacks . | . . . . . . Unauthorized Hacks 3 | . 2 . . 1 . Terminals 3 | . 2 . . 1 . Botnet 3 | . 2 . . 1 . Fabricators . | . . . . . . Repair Stations . | . . . . . . Recycling Units . | . . . . . . Scanalyzers . | . . . . . . Garrison Access . | . . . . . . Data Cores Recovered . | . . . . . . Used . | . . . . . . Hacking Detections 8 | . 7 . . 1 . Full Trace Events . | . . . . . . Feedback Events . | . . . . . . Feedback Blocked . | . . . . . . Robot Schematics Acquired . | . . . . . . Robots Built . | . . . . . . Authchips . | . . . . . . Time . | . . . . . . Total Robot Build Rating . | . . . . . . Part Schematics Acquired . | . . . . . . Parts Built . | . . . . . . Authchips . | . . . . . . Time . | . . . . . . Total Part Build Rating . | . . . . . . Parts Repaired 4 | . 4 . . . . Time 110 | . 110 . . . . Parts Recycled . | . . . . . . Recycled Matter . | . . . . . . Retrieved Matter . | . . . . . . Retrieved Components . | . . . . . . Parts Scanalyzed . | . . . . . . Part Schematics Acquired . | . . . . . . Parts Damaged . | . . . . . . Bothacking | -11 -10 -10 -10 -9 -8 ------------ Run | Yrd Mat Min Exi Min Mat Used RIF Installer . | . . . . . . Robots Hacked . | . . . . . . Non-combat . | . . . . . . Combat . | . . . . . . Robot Hacks Applied . | . . . . . . Relay Couplers Released . | . . . . . . Fabnet Peak Effective % . | . . . . . . Robots Rewired 2 | . . . 2 . . Allies Hacked . | . . . . . . Hacks Repelled . | . . . . . . Allies | -11 -10 -10 -10 -9 -8 -------- Run | Yrd Mat Min Exi Min Mat Total Allies 2 | . . . 2 . . Largest Group 2 | . . . 2 2 . Highest-Rated Group 29 | . . . 29 29 . Highest-Rated Ally 21 | . . . 21 21 . Total Orders . | . . . . . . Ally Attacks 8 | . . . . 8 . Total Damage 124 | . . . . 124 . Kills 1 | . . . . 1 . Allies Corrupted . | . . . . . . Allies Melted . | . . . . . . Intel | -11 -10 -10 -10 -9 -8 ------- Run | Yrd Mat Min Exi Min Mat Active Infowar (turns) 4484 | 146 1765 53 1269 1121 130 Terrain 122 | . . . . . 122 Seismic 4479 | 146 1765 53 1269 1121 125 Robot Analysis Total . | . . . . . . Derelict Logs Recovered 2 | . . . . 2 . Drone Launches . | . . . . . . Drone Recoveries . | . . . . . . Exploration | -11 -10 -10 -10 -9 -8 ------------- Run | Yrd Mat Min Exi Min Mat Turns Passed 4655 | 231 1817 53 1269 1121 164 Spaces Moved 2212 | 116 839 28 652 525 52 Core 11 | 5 . . . . 6 Treads . | . . . . . . Legs 2201 | 111 839 28 652 525 46 Wheels . | . . . . . . Hover . | . . . . . . Flight . | . . . . . . Fastest Speed 50 | 50 120 190 190 190 120 Average Speed 178 | 116 170 190 190 190 167 Slowest Speed 550 | 120 190 190 190 190 550 Overloaded Moves . | . . . . . . Propulsion Burnouts . | . . . . . . Robots Hopped . | . . . . . . Potential Cave-ins . | . . . . . . Cave-ins Triggered . | . . . . . . Exploration Rate (%) 48 | 6 98 6 92 79 12 Regions Visited 5 Branch Regions 3 Pre-discovered Areas 1 | . . . 1 . . Known Exits Taken . | . . . . . . Unknown Exits Taken 5 | 1 1 1 1 1 . Scrap Searched 3 | . . . . 3 . Spaces Dug . | . . . . . . Terrain Destroyed 13 | . . . . . 13 Melee . | . . . . . . Projectile . | . . . . . . AOE 13 | . . . . . 13 Terrain Rammed . | . . . . . . Walls Destroyed . | . . . . . . Machines Disabled . | . . . . . . Actions | -11 -10 -10 -10 -9 -8 --------- Run | Yrd Mat Min Exi Min Mat Total 2763 | 160 1145 29 684 650 95 Wait 339 | 3 207 . . 117 12 Move 2207 | 115 838 27 651 524 52 Hop . | . . . . . . Pick Up 22 | 7 9 1 2 3 . Fast Attach 11 | 7 4 . . . . Attach 10 | . 1 . . . 9 Detach . | . . . . . . Swap 19 | 1 15 . . 2 1 Drop 19 | . 12 1 2 4 . Fire 107 | 27 59 . . . 21 Melee . | . . . . . . Ram . | . . . . . . Kick . | . . . . . . Crush . | . . . . . . Escape Stasis . | . . . . . . Rewire 29 | . . . 29 . . Trap . | . . . . . . Miscellaneous . | . . . . . . Route ------- -11/Scrapyard -10/Materials (discovered 5 exits: [*Mat x3] / [*Min] / [*Sub]) -10/Mines -10/Exiles -9/Mines -8/Materials History --------- Turn | Location | Event 9 | -11/Scrapyard | Discovered new exit (range 15) 232 | -11/Scrapyard | Entered Materials 309 | -10/Materials | Build established: Mutant 359 | -10/Materials | Discovered new exit (range 10) 520 | -10/Materials | Discovered new exit (range 6) 681 | -10/Materials | Repaired Aluminum Leg 708 | -10/Materials | Repaired EM Pulse Gun 736 | -10/Materials | Repaired Aluminum Leg 932 | -10/Materials | Discovered new exit (range 14) 1132 | -10/Materials | Build established: Scavenger-Mutant 1253 | -10/Materials | Discovered new exit (range 10) 1610 | -10/Materials | Core integrity fell below 50% 1706 | -10/Materials | Discovered new exit (range 8) 1998 | -10/Materials | Repaired Particle Gun 2049 | -10/Materials | Entered Mines 2056 | -10/Mines | Received a Rocket Launcher from a helpful Derelict 2093 | -10/Mines | Deemed a non-threat by the Exiles lab entrance 2093 | -10/Mines | Discovered new exit (range 5) 2102 | -10/Mines | Entered Exiles 2102 | -10/Exiles | Found Exiles lab destroyed 3014 | -10/Exiles | Learned location of Zion (-6) 3144 | -10/Exiles | Opened EX-Vault 3350 | -10/Exiles | Discovered new exit (range 10) 3371 | -10/Exiles | Entered Mines 3371 | -9/Mines | Accompanied by 2 allies 3396 | -9/Mines | Learned Materials trap positions 3400 | -9/Mines | Found a hidden stash of uninstalled traps 3523 | -9/Mines | Assembled infested the area 3975 | -9/Mines | YI-UF0 nonchalantly dropped a Grenade Launcher on the ground 3980 | -9/Mines | Learned Materials terminal intel 4299 | -9/Mines | Discovered new exit (range 15) 4492 | -9/Mines | Entered Materials 4492 | -8/Materials | Evolved 4 slots: Propulsion x2, Utility x2 4493 | -8/Materials | Loaded intel: 18 trap records 4494 | -8/Materials | Loaded intel: 11 terminal locations 4631 | -8/Materials | Core integrity fell below 50% 4650 | -8/Materials | Core integrity fell below 20% 4656 | -8/Materials | Destroyed by S-10 Pest with Light Assault Rifle Last Messages --------------- 04622_ Aluminum Leg destroyed. 04622_ Destroyed Aluminum Leg. 04622_ Imp. Terrain Scanner destroyed. 04626_ Power failure, Lgt. Nuclear Core shutdown. 04628_ Aluminum Leg destroyed. 04629_ Terminal disabled. 04629_ G-47 Trooper destroyed. 04630_ Overheating: System interference. 04630_ Rocket Launcher temporarily disabled. 04631_ K-01 Serf collects debris. 04632_ Lgt. Nuclear Core destroyed. 04634_ K-01 Serf collects debris. 04640_ Critical hit (Burn: +37). 04641_ The unstable cave ceiling collapses. 04642_ K-01 Serf collects debris. 04642_ Rocket Launcher destroyed. 04645_ K-01 Serf collects debris. 04646_ G-50 Soldier destroyed. 04648_ W-25 Informer sends out distress signal. 04648_ K-01 Serf collects debris. Map ----- +----------------------------------------------------+ | ????????????#== """ #?????????#?????????????? | | ????????????#== #???#???????????????????? | | ????????????# #????????###????????????? | | ????????????####+########## #???????????? | | ????????#???# #???????????? | | ????????????# " ?????????????? | | ????????????# #???????????? | | ????????????##### ####### #???????????? | | ??????#???#?????# #???#??????#????????????? | | ????????????????# #???????????????????????? | | ????????????????# ##?#? ??"??"????????????? | | ????????????????# ##??????????????????????? | | ?????????#??#???# #???????????????????????? | | ????#???#??#????# #?????? ???????????????? | | ???????########## #???????????????????????? | | ???????# # #???????????????????????? | | ?#?????# # #???? ? ????????????????? | | ???????# # ########????????????????? | | ???? ? # # #????????????????? | | ???????# # #????????????????? | | ???? ??# # #????????????????? | | ???????# T "" #?? ?????????????? | | ????? ?# ! # [[ T" #? ??????????????? | | ???????# *=% "" #????????????????? | | ???? ??######; #k %= #????????????????? | | ???#?#???# =%@ #?????"??????????? | | ????? sss ""???????????? | | ???# w s / ""???????????? | | ???? ]] """ # ""???????????? | | ???? ]] """"" /// ? o??????????? | | ???# ]] """"" ! /Y/ ##??##??????????? | | ???? """"" // ##???????????????? | | ??? ?""" ???????????????? | | ???? ??? ??????????????? | | ???? ???? | ?????????????? | | ????^^ ^ ????" "#######/######????????????? | | ????????^ ???T?"Y"???????k ?????????????????? | | ???"?^^????????""???#????? ?????????????????? | | ???T?????????????????????? ????????????????? | | ???"????????????????????????????????????????? | | ????????????????????????????????????????????? | | ????????????????????????????????????????????? | | ????????????????????????????????????????????? | | ????????????????????????????????????????????? | | ????????????????????????????????????????????? | | ????????????????????????????????????????????? | | ????????????????????????????????????????????? | | ????????????????????????????????????????????? | | ????????????????????????????????????????????? | | ????????????????????????????????????????????? | +----------------------------------------------------+ Best States ------------- Heat Dissipation 31 Energy Generation 14 Energy Capacity 250 Matter Stores 300 Matter Capacity 300 Sight Range 16 Terrain Scan Range 16 Terrain Scan Density 10 Armor Coverage 150 Evasion (%) 55 Item Schematics ----------------- None Robot Schematics ------------------ None Fabricated ------------ Nothing Repaired ---------- Aluminum Leg | 70% | -10/Materials EM Pulse Gun | 15% | -10/Materials Aluminum Leg | 71% | -10/Materials Particle Gun | 13% | -10/Materials Alien Tech Used ----------------- None Achievements -------------- A New Friend Challenges ------------ None Game ------ Seed CorruptionProcessingAutobeam Manual? 0 Play Time 00:33:03 Cumulative 46.7 hours Start 2025.08.12 @ 21:36:53 End 2025.08.12 @ 22:12:05 Sessions 1 Manual Loads 0 Difficulty Rogue Special Mode None Game No. 42 Rogue 42 Adventurer 0 Explorer 0 Win Type - Total 0 Types 0/0/0/0/0/0/0/0/0/0 Lore% 31 Gallery% 25 Achievement% 26 Wizard Run 0 Options --------- Layout 0 ASCII 0 Keyboard 1 Movement Numpad Keybinds 0 Fullscreen 1 Font 18/SmallcapsGlow Map View 76x50 Zoom Use 0% Tactical HUD 1 Map Filters NONE Filters NONE Steam 1 RUN: c7ef6a2d-2448-4912-9cfa-375fb0486b2f